bitfinex/quotes_ETHUSD_20260305
["timestamp","ask_amount","ask_price","bid_price","bid_amount"]
[1772675146995,5.20847236,2112.2,2111.6,0.0011]
[1772675147374,4.73484848,2112.2,2111.6,0.0011]
[1772675147875,4.73440015,2112.4,2111.6,0.0011]
[1772675148199,4.73526878,2112.5,2111.6,0.0011]
[1772675148891,4.73526878,2112.5,2111.7,0.49742152]
[1772675149095,1.18443195,2112.5,2111.7,0.49742152]
[1772675149903,0.001,2112.5,2111.8,1.18382422]
[1772675150400,0.001,2112.5,2111.7,2.73429801]
[1772675151082,0.001,2112.5,2111.7,2.73329801]
[1772675151277,0.001,2112.5,2111.6,0.0011]
[1772675151805,1.18348797,2112.4,2111.6,0.0011]
[1772675152706,0.49659255,2112.2,2111.6,0.0011]
[1772675152904,2.77405074,2112.1,2111.6,0.0011]
[1772675153607,1.18348797,2112.4,2111.6,0.0011]
[1772675153807,2.77497801,2112.3,2111.6,0.0011]
[1772675154004,1.18360003,2112.2,2111.6,0.0011]
[1772675154810,4.73440015,2112.4,2111.6,0.49852152]
[1772675154811,4.73403915,2112.4,2111.6,0.49852152]
[1772675155107,1.18348797,2112.4,2111.6,0.49852152]
[1772675155307,1.18446196,2112.5,2111.7,0.49742152]
[1772675155482,0.001,2112.5,2111.7,0.49742152]
[1772675155881,1.18443277,2112.5,2111.7,0.49742152]
[1772675156081,0.001,2112.3,2111.9,0.49742152]
[1772675156307,0.001,2112.5,2111.9,0.49742152]
[1772675156498,1.18331992,2112.7,2111.9,0.49742152]
[1772675156499,0.31695957,2112.8,2111.9,0.49742152]
[1772675156698,1.18292798,2113.5,2112.1,0.49742152]
[1772675156899,2.77765886,2113.4,2112.1,0.49742152]
[1772675157594,1.18292798,2113.5,2112.1,0.49742152]
[1772675158780,0.49759255,2113.6,2112.3,0.49742152]
[1772675159716,0.49759255,2113.6,2112.3,1.048]
[1772675159717,0.49659255,2113.4,2112.3,1.048]
[1772675160087,0.49659255,2113.2,2112.2,1.048]
[1772675160721,1.18292798,2113.4,2112.4,0.49742152]
[1772675161027,1.18386048,2113.6,2112.4,0.49742152]
[1772675161388,0.001,2113.6,2112.4,0.49742152]
[1772675161887,1.18236852,2114.4,2112.4,0.56295752]
[1772675162088,1.49971569,2114.5,2112.8,0.49742152]
[1772675162316,1.49971569,2114.5,2113.0,0.49742152]
[1772675162522,0.31736051,2114.5,2113.0,0.49742152]
[1772675162740,0.49759255,2115.3,2113.4,0.49742152]
[1772675163387,0.001,2115.3,2113.4,0.49742152]
[1772675163582,0.49759255,2115.3,2113.6,0.49742152]
[1772675163784,0.49759255,2115.3,2113.3,1.24851995]
[1772675163785,0.49759255,2115.3,2113.8,0.49742152]
[1772675164002,0.49759255,2115.3,2113.9,0.49742152]
[1772675164200,0.49759255,2115.3,2113.4,0.49742152]
[1772675164411,0.49759255,2115.3,2113.5,1.54442152]
[1772675164614,0.49659255,2115.1,2113.5,0.49742152]
[1772675164811,0.49659255,2115.1,2113.2,4.73193583]
[1772675164812,0.49659255,2114.7,2113.2,1.18303993]
[1772675165017,0.49659255,2114.7,2113.3,1.047]
[1772675165506,0.49659255,2114.7,2113.4,0.49742152]
[1772675166008,0.49659255,2114.7,2113.5,1.047]
[1772675166395,0.49659255,2114.7,2113.1,1.18306771]
[1772675166587,0.49659255,2114.7,2113.2,1.047]
[1772675167311,1.67884924,2114.6,2113.3,1.68040547]
[1772675167619,1.67884924,2114.6,2113.4,1.047]
[1772675167620,0.49659255,2114.3,2113.4,1.047]
[1772675167783,0.49659255,2114.3,2113.0,0.38235089]
[1772675167985,1.67884924,2114.6,2113.5,0.49852152]
[1772675168187,1.18225669,2114.6,2113.6,1.54142152]
[1772675168485,1.18214488,2114.9,2113.7,0.49742152]
[1772675168898,1.18207694,2115.0,2113.8,1.039]
[1772675169393,0.001,2115.1,2113.9,1.18264818]
[1772675169591,0.001,2115.1,2114.0,1.039]
[1772675170196,0.001,2115.1,2114.0,1.53642152]
[1772675170510,0.001,2115.1,2114.1,0.49742152]
[1772675170898,0.001,2115.1,2114.2,0.49742152]
[1772675171504,0.001,2115.1,2114.3,1.18242444]
[1772675171997,0.001,2115.1,2114.3,1.67984596]
[1772675172619,0.001,2115.1,2114.4,0.49742152]
[1772675172921,0.001,2115.3,2114.4,0.49742152]
[1772675173289,0.001,2115.3,2114.5,1.041]
[1772675173707,0.001,2115.3,2114.6,1.67967821]
[1772675175423,0.001,2115.3,2114.2,4.72902676]
[1772675175424,0.001,2115.3,2114.3,4.72960485]
[1772675175596,0.001,2115.3,2113.9,1.18264818]
[1772675175597,0.49659255,2115.1,2113.9,1.18264818]
[1772675175794,0.49659255,2115.1,2114.0,1.042]
[1772675176023,0.49659255,2114.9,2113.3,0.0011]
[1772675176316,0.49659255,2114.7,2113.4,1.042]
[1772675176620,0.49659255,2115.1,2113.5,1.68139335]
[1772675176808,0.49659255,2115.1,2113.6,0.49742152]
[1772675177519,1.18192133,2115.2,2113.6,0.49742152]
[1772675177723,0.001,2115.3,2113.8,0.49742152]
[1772675177935,0.001,2115.3,2114.2,0.49742152]
[1772675178241,0.001,2115.3,2114.4,0.49742152]
[1772675178813,0.001,2115.3,2114.4,1.54142152]
[1772675179012,0.001,2115.3,2114.5,0.45842427]
[1772675179928,0.001,2115.3,2114.6,1.18225669]
[1772675180097,0.001,2115.3,2114.5,1.18229069]
[1772675180298,0.001,2115.3,2114.2,2.22648037]
[1772675180520,0.001,2115.3,2114.2,1.18248037]
[1772675180726,0.001,2115.1,2114.2,1.18248037]
[1772675181807,0.001,2115.1,2114.2,1.64090464]
[1772675182019,0.001,2115.1,2114.2,1.18248037]
[1772675182322,0.001,2115.1,2114.1,1.18250646]
[1772675182535,0.001,2115.1,2114.0,2.22655133]
[1772675182730,0.001,2115.1,2114.0,1.044]
[1772675182944,0.49383246,2115.1,2114.0,1.044]
[1772675183314,0.49383246,2115.1,2113.4,5.19012871]
[1772675183315,0.49283246,2114.5,2113.1,1.18305118]
[1772675183632,0.49283246,2114.5,2113.5,1.18396636]
[1772675184141,1.18236852,2114.4,2113.5,0.0011]
[1772675184731,1.18220078,2114.7,2113.5,0.0011]
[1772675184951,1.67503324,2114.7,2113.5,0.0011]
[1772675185110,0.49283246,2114.6,2113.5,0.0011]
[1772675186447,0.49283246,2114.4,2113.5,0.0011]
[1772675186652,1.1823126,2114.5,2113.5,0.0011]
[1772675186853,1.66488542,2114.5,2113.5,0.0011]
[1772675187513,4.7287269,2114.8,2113.5,0.46252657]
[1772675187718,0.48257282,2114.6,2113.5,0.0011]
[1772675188342,4.7287269,2114.8,2113.5,0.0011]
[1772675188510,1.6647177,2114.9,2113.5,0.0011]
[1772675188713,2.77567862,2114.8,2113.5,0.0011]
[1772675189967,2.77567862,2114.8,2113.5,0.46252657]
[1772675190134,1.6647177,2114.9,2113.5,0.46252657]
[1772675190936,0.001,2115.1,2113.7,0.46142657]
[1772675191146,0.48357282,2115.1,2113.6,1.18281604]
[1772675191353,0.48257282,2115.0,2113.6,1.18281604]
[1772675191665,0.48257282,2114.8,2113.6,1.18281604]
[1772675191837,3.26450231,2114.7,2113.6,1.18281604]
[1772675192036,2.78192949,2114.6,2113.6,1.18281604]
[1772675192531,2.78192949,2114.6,2113.6,1.64424261]
[1772675192753,2.21179972,2115.0,2113.7,0.46252657]
[1772675192954,1.18208898,2114.9,2113.8,1.18270413]
[1772675193167,2.78279126,2114.8,2113.8,1.18270413]
[1772675194354,2.78279126,2114.8,2113.8,1.6441307]
[1772675194539,1.18208898,2114.9,2113.9,0.46142657]
[1772675195135,4.72835595,2115.0,2114.0,1.18259224]
[1772675195365,1.18203309,2115.0,2114.0,2.68701881]
[1772675195762,1.18203309,2115.0,2114.0,1.18259224]
[1772675195763,3.26768651,2114.9,2114.0,1.18259224]
[1772675195945,0.48257282,2114.9,2114.0,1.18259224]
[1772675196765,2.78511761,2114.8,2113.8,4.73079111]
[1772675196965,3.26769043,2114.8,2113.8,4.73079111]
[1772675197169,1.18225669,2114.6,2113.8,1.18270413]
[1772675197335,1.18225669,2114.6,2113.7,1.18382405]
[1772675197336,1.66482951,2114.6,2113.7,1.18382405]
[1772675197540,1.18225669,2114.6,2113.7,1.18382405]
[1772675198263,1.18214488,2114.9,2113.7,1.18382405]
[1772675198586,2.78488494,2114.8,2113.7,1.64525062]
[1772675199255,1.18220078,2114.7,2113.7,1.64525062]
[1772675199461,0.48257282,2114.6,2113.7,1.18382405]
[1772675199640,0.48257282,2114.6,2113.7,1.18384779]
[1772675202250,0.48257282,2114.9,2113.7,0.46252657]
[1772675202547,3.96769293,2114.8,2113.7,0.46252657]
[1772675202744,2.78554805,2114.7,2113.7,0.46252657]
[1772675203143,1.18207163,2115.0,2113.7,0.46252657]
[1772675203346,0.001,2115.1,2113.7,0.46252657]
[1772675203871,1.18297926,2115.1,2113.7,0.46252657]
[1772675204059,0.001,2115.1,2113.7,0.46252657]
[1772675204374,0.001,2115.1,2113.9,0.46142657]
[1772675204574,0.001,2115.1,2113.8,1.18270413]
[1772675204575,0.001,2115.1,2114.2,0.46142657]
[1772675205150,0.001,2114.6,2114.2,0.46142657]
[1772675205344,0.001,2115.1,2114.2,0.46142657]
[1772675206274,0.001,2115.1,2114.4,0.46142657]
[1772675206490,0.001,2115.3,2114.4,0.46142657]
[1772675206853,0.001,2115.3,2114.4,1.50442657]
[1772675207471,0.001,2115.3,2114.5,0.46142657]
[1772675208584,0.001,2115.3,2114.6,1.18225669]
[1772675210154,0.49882881,2115.3,2114.4,1.042]
[1772675210354,2.789139,2115.2,2114.4,1.042]
[1772675210559,1.6798619,2115.0,2114.4,1.042]
[1772675210788,1.6798619,2115.0,2114.4,2.22436848]
[1772675211091,0.49782881,2114.9,2113.9,0.0011]
[1772675211570,0.49782881,2114.7,2113.9,0.0011]
[1772675211770,0.49782881,2114.7,2113.9,1.18374689]
[1772675212083,1.18203309,2115.0,2113.9,1.18374689]
[1772675212084,1.6798619,2115.0,2113.9,1.18374689]
[1772675212285,2.78952,2114.9,2113.9,1.18374689]
[1772675212587,1.18214488,2114.8,2113.9,0.0011]
[1772675213272,1.18211934,2114.9,2113.9,0.48189411]
[1772675214785,1.18197721,2115.1,2114.0,1.18259224]
[1772675214974,0.49782881,2115.0,2114.0,1.18259224]
[1772675215172,0.49782881,2114.8,2113.9,0.0011]
[1772675215592,3.28581223,2114.7,2113.9,0.0011]
[1772675215887,0.49782881,2114.7,2113.9,0.0011]
[1772675216723,1.6800855,2114.6,2113.9,0.0011]
[1772675217293,1.18225669,2114.6,2113.9,0.0011]
[1772675217489,1.6800855,2114.6,2114.1,0.0011]
[1772675219330,1.18225669,2114.6,2114.1,0.0011]
[1772675220218,1.6800855,2114.6,2114.1,0.0011]
[1772675220928,1.18208898,2114.9,2114.1,0.0011]
[1772675221125,2.7887525,2114.8,2114.1,0.0011]
[1772675221494,0.49782881,2114.7,2114.1,0.0011]
[1772675222092,2.78830905,2114.6,2114.1,0.0011]
[1772675222915,1.18225669,2114.6,2114.1,0.0011]
[1772675224724,1.6800855,2114.6,2114.1,0.0011]
[1772675224923,0.49782881,2114.5,2113.9,0.0011]
[1772675226040,1.18225669,2114.6,2113.9,0.0011]
[1772675226347,0.49782881,2114.5,2113.9,0.0011]
[1772675227024,1.18236852,2114.4,2113.9,0.0011]
[1772675227227,0.49782881,2114.3,2113.9,0.0011]
[1772675229256,1.18248037,2114.2,2114.1,0.0011]
[1772675230549,1.18340502,2114.4,2114.1,0.0011]
[1772675230752,0.001,2114.4,2114.1,0.0011]
[1772675230958,1.18337002,2114.4,2114.1,0.0011]
[1772675231454,0.001,2114.4,2114.1,0.0011]
[1772675232725,0.001,2115.1,2114.1,0.48189411]
[1772675232937,4.72815251,2115.0,2114.1,0.48189411]
[1772675233162,0.001,2115.1,2114.2,0.48079411]
[1772675233531,0.001,2115.1,2114.4,0.48079411]
[1772675234355,0.001,2115.3,2114.6,0.48079411]
[1772675235449,0.49782881,2115.6,2114.4,0.48079411]
[1772675235648,0.001,2115.7,2114.6,0.48079411]
[1772675236470,0.001,2115.7,2114.6,1.51479411]
[1772675236471,1.68047545,2115.7,2114.6,1.51479411]
[1772675236960,1.68047545,2115.7,2114.7,0.48079411]
[1772675237460,1.18264664,2115.7,2114.7,0.48079411]
[1772675237641,0.001,2115.7,2114.9,0.48079411]
[1772675238030,0.3161399,2116.3,2114.9,0.48079411]
[1772675238229,10.26397534,2117.3,2114.8,1.18214488]
[1772675238230,0.00099939,2116.2,2115.1,0.48079411]
[1772675238463,1.67885677,2116.8,2115.3,0.48079411]
[1772675238630,0.00099939,2116.7,2115.4,1.034]
[1772675238867,0.00099939,2116.7,2115.5,0.45518298]
[1772675239065,0.00099939,2116.6,2115.5,0.45518298]
[1772675239488,0.00099939,2116.6,2115.6,1.18169786]
[1772675239666,0.00099939,2116.6,2115.7,0.45518298]
[1772675240673,0.48863441,2117.6,2115.7,0.45518298]
[1772675240906,0.48863441,2117.6,2115.9,0.45518298]
[1772675241102,0.001,2116.5,2115.9,0.45518298]
[1772675241704,0.48863441,2117.3,2115.7,1.034]
[1772675241705,0.48863441,2117.1,2115.7,1.034]
[1772675241876,0.48863441,2117.0,2115.7,1.034]
[1772675242077,0.48863441,2117.0,2115.8,0.45518298]
[1772675242305,0.48863441,2117.0,2115.9,1.035]
[1772675242693,0.48863441,2117.1,2115.9,1.49018298]
[1772675243803,1.18091639,2117.0,2116.0,1.18147448]
[1772675244190,1.18091639,2117.0,2116.0,1.63665746]
[1772675244403,1.18091639,2117.0,2116.1,1.035]
[1772675244606,0.48863441,2116.9,2116.1,1.035]
[1772675245320,0.48863441,2116.9,2115.9,1.18149096]
[1772675245624,0.48863441,2116.9,2115.8,1.035]
[1772675246123,0.48863441,2116.9,2115.5,4.79254535]
[1772675246124,0.48863441,2116.7,2115.5,0.45518298]
[1772675246304,0.48863441,2116.7,2115.3,1.18186545]
[1772675246623,0.48863441,2116.7,2115.5,1.035]
[1772675247188,0.48863441,2116.7,2115.2,1.18187773]
[1772675248014,0.45297419,2116.4,2115.1,4.72768532]
[1772675248203,0.45297419,2116.4,2115.2,1.035]
[1772675249692,0.45297419,2116.4,2115.1,1.18197721]
[1772675249898,0.45297419,2116.4,2115.3,0.49252101]
[1772675250201,0.45297419,2116.4,2115.4,1.18180958]
[1772675250202,1.18130699,2116.3,2115.4,1.18180958]
[1772675250606,1.18129479,2116.4,2115.4,1.18180958]
[1772675250791,1.18129479,2116.4,2115.4,1.67433059]
[1772675251000,0.45297419,2116.3,2115.4,1.18180958]
[1772675251311,0.45297419,2116.3,2115.0,1.035]
[1772675251612,0.45297419,2116.3,2114.9,1.035]
[1772675252118,0.45297419,2116.3,2114.8,2.21714488]
[1772675252415,0.45297419,2116.1,2114.8,2.21714488]
[1772675252908,0.45297419,2116.1,2114.9,0.49252101]
[1772675253408,0.45297419,2116.1,2115.0,1.035]
[1772675253797,0.45297419,2116.1,2115.3,0.0011]
[1772675254210,1.18147448,2116.0,2115.3,0.0011]
[1772675254516,0.45297419,2115.9,2115.3,0.0011]
[1772675255188,1.18147448,2116.0,2115.3,0.0011]
[1772675255189,0.45297419,2115.7,2115.3,0.0011]
[1772675256320,0.45297419,2115.5,2115.3,0.0011]
[1772675256618,1.18169786,2115.6,2115.3,0.0011]
[1772675256916,1.63467205,2115.6,2115.3,0.0011]
[1772675257911,1.18169786,2115.6,2115.3,0.0011]
[1772675258923,0.45297419,2115.5,2114.4,1.18236852]
[1772675259914,0.45297419,2115.5,2114.3,2.71200737]
[1772675260323,0.45297419,2115.5,2114.3,1.18352081]
[1772675260905,1.18180958,2115.4,2114.3,0.0011]
[1772675261269,1.63478377,2115.4,2114.3,0.0011]
[1772675261601,1.63478377,2115.4,2114.3,0.49362101]
[1772675262723,0.45297419,2115.3,2114.3,0.49362101]
[1772675263026,0.45297419,2115.3,2114.3,0.0011]
[1772675263533,1.18192133,2115.2,2114.3,0.0011]
[1772675265348,1.18203309,2115.0,2114.5,0.0011]
[1772675267227,4.72765457,2115.3,2114.5,0.49362101]
[1772675267425,4.72765457,2115.3,2114.5,1.18336668]
[1772675267625,0.45297419,2115.2,2114.5,0.0011]
[1772675268670,0.47444134,2115.0,2114.3,0.0011]
[1772675269527,1.65653032,2114.9,2114.3,0.0011]
[1772675269827,0.47444134,2114.8,2114.3,0.0011]
[1772675270434,1.18208898,2114.9,2114.3,0.0011]
[1772675272250,4.72835595,2115.0,2114.3,0.0011]
[1772675273561,0.47444134,2114.9,2114.3,0.0011]
[1772675274326,1.18214488,2114.8,2114.3,0.0011]
[1772675276126,1.18214488,2114.8,2114.3,0.45806274]
[1772675276691,1.65647443,2115.0,2114.3,0.0011]
[1772675276852,1.65647443,2115.0,2114.5,0.0011]
[1772675277282,0.47544134,2114.8,2114.3,0.0011]
[1772675278485,1.18220078,2114.7,2114.3,0.0011]
[1772675280783,0.001,2114.8,2114.3,0.0011]
[1772675280966,0.47544134,2114.8,2114.3,0.0011]
[1772675282885,0.001,2114.8,2114.3,0.45806274]
[1772675283265,0.001,2114.8,2114.3,1.64047239]
[1772675283809,0.001,2114.8,2114.3,0.0011]
[1772675284008,0.47544134,2114.8,2114.3,0.0011]
[1772675284306,0.001,2114.8,2114.3,0.0011]
[1772675286205,0.001,2114.8,2114.3,0.45806274]
[1772675287500,0.47544134,2114.8,2114.3,0.0011]
[1772675288419,0.47544134,2114.8,2114.5,0.0011]
[1772675288821,0.001,2114.6,2114.5,0.0011]
[1772675290391,0.47544134,2114.6,2114.3,0.0011]
[1772675291294,0.001,2114.6,2114.3,0.0011]
[1772675295497,0.001,2114.8,2114.3,0.45806274]
[1772675296692,0.001,2114.8,2114.4,0.45696274]
[1772675299711,0.001,2114.8,2114.3,0.0011]
[1772675300915,0.49559133,2114.8,2114.1,0.0011]
[1772675301114,0.49559133,2114.8,2113.9,0.0011]
[1772675301115,0.49459133,2114.5,2113.5,1.0271]
[1772675301321,0.49459133,2114.4,2113.6,0.0011]
[1772675301510,2.23826977,2114.3,2113.5,0.0011]
[1772675301706,2.09550635,2114.4,2113.5,0.0011]
[1772675301707,0.49459133,2114.1,2113.5,0.0011]
[1772675302409,0.49459133,2114.1,2113.5,0.0022]
[1772675302623,2.7328611,2114.4,2113.5,0.0022]
[1772675302823,2.7328611,2114.4,2113.5,0.49853194]
[1772675302824,1.18248037,2114.2,2113.5,0.49853194]
[1772675303037,4.72952025,2114.4,2113.5,0.49853194]
[1772675303256,1.1823506,2114.5,2113.7,0.49633194]
[1772675303551,4.73016666,2114.6,2113.7,0.49633194]
[1772675303552,1.18329962,2114.6,2113.7,0.49633194]
[1772675303708,1.18329962,2114.6,2113.9,0.49633194]
[1772675304544,1.18329962,2114.6,2114.0,0.0011]
[1772675304936,0.001,2114.6,2114.0,1.18369224]
[1772675305309,0.001,2114.6,2114.0,1.68002418]
[1772675306340,0.001,2114.6,2114.1,1.026]
[1772675307137,0.001,2114.8,2114.2,1.66842281]
[1772675308417,0.001,2114.8,2114.2,2.69442281]
[1772675308617,0.001,2114.8,2114.3,1.026]
[1772675309021,0.001,2114.8,2114.3,2.20838684]
[1772675311623,0.001,2114.8,2114.4,0.48594244]
[1772675312732,0.48553735,2114.8,2114.2,1.026]
[1772675312943,0.48553735,2114.8,2114.2,0.0011]
[1772675313238,0.48553735,2114.8,2114.0,0.0011]
[1772675313422,0.48553735,2114.8,2113.7,1.026]
[1772675313623,0.48453735,2114.4,2113.5,0.0011]
[1772675313819,0.48453735,2114.3,2113.4,0.0011]
[1772675314419,0.48453735,2114.3,2114.0,0.0011]
[1772675315033,0.48453735,2114.3,2113.4,0.0011]
[1772675315330,0.48453735,2114.3,2113.5,0.0011]
[1772675315738,0.48453735,2114.1,2113.5,0.0011]
[1772675318160,1.18259224,2114.0,2113.4,0.0011]
[1772675318965,1.66712959,2114.0,2113.5,0.0011]
[1772675319460,0.48453735,2113.9,2113.4,0.0011]
[1772675319623,0.48453735,2113.9,2113.4,0.0022]
[1772675320454,1.66724148,2113.8,2113.4,0.0022]
[1772675320671,0.48453735,2113.7,2113.3,0.0011]
[1772675320966,1.18270413,2113.8,2113.3,0.0011]
[1772675322231,1.18267748,2113.9,2113.3,0.0011]
[1772675323263,1.18248037,2114.2,2113.3,0.48594244]
[1772675325163,1.18248037,2114.2,2113.5,0.48484244]
[1772675325739,1.18248037,2114.2,2113.5,0.48594244]
[1772675325946,0.001,2114.1,2113.5,0.48594244]
[1772675326547,0.48553735,2114.1,2113.5,0.0011]
[1772675326747,0.48553735,2114.1,2113.3,0.0011]
[1772675327292,0.48453735,2113.9,2113.3,0.0011]
[1772675327439,0.48453735,2113.7,2113.3,0.0011]
[1772675329160,1.18281604,2113.6,2113.2,0.0011]
[1772675329362,0.46123569,2113.4,2113.2,0.0011]
[1772675330064,0.46123569,2113.4,2113.0,0.0011]
[1772675331273,1.64421964,2113.3,2113.0,0.0011]
[1772675331644,1.64421964,2113.3,2113.0,0.0022]
[1772675332469,1.18298395,2113.3,2113.0,0.0022]
[1772675332682,1.64421964,2113.3,2112.2,0.48551786]
[1772675332970,1.64421964,2113.3,2112.3,0.0011]
[1772675332971,0.46123569,2113.2,2112.3,0.0011]
[1772675333153,0.46123569,2113.2,2112.2,0.08661786]
[1772675333547,1.64433161,2113.1,2112.2,1.27016996]
[1772675334052,1.64433161,2113.1,2112.0,2.71201438]
[1772675334053,0.46123569,2113.0,2112.0,2.71201438]
[1772675334254,0.46123569,2113.0,2111.7,1.18384141]
[1772675334747,0.46123569,2113.0,2111.7,1.57205153]
[1772675334942,0.46123569,2113.0,2111.8,0.38821012]
[1772675335569,0.46123569,2112.8,2111.7,1.18385664]
[1772675335775,0.46123569,2112.8,2111.6,4.7367247]
[1772675335776,0.46123569,2112.8,2111.6,1.0241]
[1772675336071,0.46123569,2112.8,2111.6,0.0011]
[1772675337577,0.46123569,2112.6,2111.6,0.0011]
[1772675337752,0.46123569,2112.4,2111.6,0.0011]
[1772675339460,0.46123569,2112.4,2111.8,0.0011]
[1772675339673,0.46123569,2112.2,2111.8,0.0011]
[1772675339879,0.46123569,2112.2,2111.6,0.0011]
[1772675340095,0.46123569,2111.8,2111.3,0.0011]
[1772675341198,1.183544,2112.3,2111.3,0.48333657]
[1772675341368,1.64477969,2112.3,2111.3,0.48333657]
[1772675341570,0.46123569,2113.0,2111.5,0.48223657]
[1772675343694,4.7323837,2113.4,2111.7,0.48223657]
[1772675343695,5.19294803,2113.4,2111.7,0.48223657]
[1772675343906,0.46123569,2113.3,2111.7,0.48223657]
[1772675344061,0.46123569,2113.3,2111.7,1.49923657]
[1772675344263,0.46123569,2113.3,2111.7,0.48223657]
[1772675344487,6.82721869,2113.4,2111.7,0.48223657]
[1772675344488,0.46123569,2113.1,2111.7,0.48223657]
[1772675344662,0.46123569,2112.9,2111.6,1.18393635]
[1772675345695,1.18326391,2112.8,2111.5,0.48223657]
[1772675346401,0.46123569,2112.7,2111.5,0.48223657]
[1772675347088,1.18326391,2112.8,2111.5,0.48223657]
[1772675347298,1.6444996,2112.8,2111.5,0.48223657]
[1772675347594,0.46123569,2112.5,2111.6,1.18393635]
[1772675348187,1.64450276,2112.8,2111.7,0.48223657]
[1772675349694,4.9463964,2113.6,2111.9,0.48223657]
[1772675350000,1.64416367,2113.4,2111.9,0.48223657]
[1772675350184,0.46123569,2113.3,2111.9,0.48223657]
[1772675351776,0.46223569,2113.1,2112.0,1.18371212]
[1772675352398,0.46223569,2113.1,2111.8,1.18489356]
[1772675353602,2.09650635,2113.1,2111.8,0.0011]
[1772675353912,0.46123569,2112.8,2111.8,0.0011]
[1772675355203,0.46123569,2112.8,2111.5,4.73697268]
[1772675355204,0.46123569,2112.4,2111.5,0.0011]
[1772675355610,0.46123569,2112.4,2111.3,0.0011]
[1772675355795,0.46123569,2112.2,2111.3,0.0011]
[1772675355999,1.183544,2112.3,2111.3,0.48443657]
[1772675356506,0.46123569,2112.3,2111.3,0.48443657]
[1772675357088,1.1835332,2112.4,2111.3,0.48443657]
[1772675357300,1.18343195,2112.5,2111.3,0.48443657]
[1772675357605,1.18333273,2112.7,2111.3,0.48443657]
[1772675357806,4.7332233,2112.8,2111.7,0.48333657]
[1772675357807,1.18330726,2112.8,2111.7,0.48333657]
[1772675358605,0.49157804,2112.7,2111.7,0.48333657]
[1772675359231,0.49157804,2112.7,2111.5,1.18395761]
[1772675359506,0.49157804,2112.7,2111.4,1.65416778]
[1772675359805,0.49157804,2112.5,2111.3,0.0011]
[1772675360012,0.49157804,2112.3,2111.3,0.0011]
[1772675360907,0.49157804,2112.3,2111.3,0.47126067]
[1772675362314,0.49157804,2112.1,2111.3,0.0011]
[1772675363315,0.49157804,2112.1,2111.2,0.003]
[1772675363634,0.49157804,2111.5,2110.6,0.003]
[1772675363811,0.49157804,2111.4,2110.6,0.003]
[1772675363984,0.49157804,2111.2,2110.6,0.003]
[1772675364185,1.67579479,2111.1,2110.6,0.003]
[1772675365313,0.49157804,2111.0,2110.6,0.003]
[1772675366332,1.67590699,2110.9,2110.6,0.003]
[1772675366628,1.67570175,2111.3,2110.6,0.003]
[1772675366797,1.18408885,2111.4,2110.6,0.003]
[1772675366994,1.18402841,2111.5,2110.6,0.003]
[1772675367584,1.18396209,2111.6,2110.6,0.48933657]
[1772675367782,1.68332492,2111.6,2110.6,0.48933657]
[1772675368315,1.68332492,2111.6,2110.6,1.67378739]
[1772675369588,0.49936283,2111.5,2110.6,0.48933657]
[1772675369814,0.49936283,2111.5,2110.6,0.003]
[1772675370194,0.49936283,2111.3,2110.6,0.003]
[1772675370396,0.49936283,2111.3,2110.2,3.79934381]
[1772675370810,0.49936283,2111.3,2110.2,2.61464579]
[1772675371015,0.49936283,2111.3,2110.2,4.28570205]
[1772675371724,0.49936283,2111.3,2110.2,4.28569273]
[1772675371894,1.18404849,2111.4,2110.3,0.48633657]
[1772675372502,1.18404849,2111.4,2110.4,1.67094612]
[1772675372707,1.18404849,2111.4,2110.5,0.48633657]
[1772675373302,1.18403526,2111.5,2110.5,0.48633657]
[1772675373708,1.18382422,2111.8,2110.5,0.48633657]
[1772675374029,1.68318705,2111.8,2110.5,0.48633657]
[1772675374328,0.49936283,2111.7,2110.5,0.48633657]
[1772675374510,1.68329918,2111.6,2110.6,1.18449729]
[1772675374825,1.68329918,2111.6,2110.6,1.67083386]
[1772675375023,1.18393635,2111.6,2110.7,0.48633657]
[1772675375704,1.18393635,2111.6,2110.7,0.48743657]
[1772675376697,4.7357454,2111.8,2110.8,1.18438506]
[1772675377021,4.7357454,2111.8,2110.8,1.67072163]
[1772675377223,1.18382422,2111.8,2110.9,0.48633657]
[1772675377735,0.49936283,2111.7,2110.7,1.18550026]
[1772675378912,1.18393635,2111.6,2110.7,0.0011]
[1772675379112,1.68329918,2111.6,2110.7,0.0011]
[1772675379513,0.49936283,2111.5,2110.7,0.0011]
[1772675381033,1.18404849,2111.4,2110.7,0.0011]
[1772675381242,1.18388028,2111.7,2110.7,0.48743657]
[1772675381931,0.49936283,2111.6,2110.7,0.48743657]
[1772675382446,0.49936283,2111.6,2110.7,0.0011]
[1772675383012,0.49936283,2111.4,2110.7,0.0011]
[1772675385234,4.73544507,2111.8,2110.7,0.48743657]
[1772675385842,0.49936283,2111.7,2110.7,0.48743657]
[1772675387145,1.18393635,2111.6,2110.8,1.18438506]
[1772675387740,1.18493635,2111.6,2110.8,1.18438506]
[1772675387940,0.001,2111.6,2110.8,1.18438506]
[1772675388142,0.001,2111.6,2110.9,0.48633657]
[1772675389539,0.001,2111.6,2110.9,1.67066307]
[1772675390558,0.49853841,2111.6,2110.7,0.0011]
[1772675390724,0.49853841,2111.6,2110.7,1.18553924]
[1772675390926,0.49853841,2111.6,2110.7,1.65039899]
[1772675391131,0.49853841,2111.6,2110.8,0.46485975]
[1772675391723,5.55015743,2112.1,2111.0,0.46485975]
[1772675391959,4.73450438,2112.2,2111.0,0.46485975]
[1772675392327,1.18360003,2112.2,2111.0,0.46485975]
[1772675392565,0.49753841,2112.1,2111.0,0.46485975]
[1772675393942,1.68125053,2112.0,2111.1,1.18421675]
[1772675394136,1.68125053,2112.0,2111.0,5.20172678]
[1772675394137,0.49753841,2111.9,2111.0,1.64908666]
[1772675395339,0.49753841,2111.9,2110.8,4.73743022]
[1772675396494,0.49753841,2111.7,2110.8,4.73743022]
[1772675397162,1.18382422,2111.8,2110.9,0.46485975]
[1772675398671,4.7352969,2111.9,2111.0,1.18427285]
[1772675399549,0.001,2111.5,2111.0,1.18427285]
[1772675399953,0.001,2111.5,2111.0,1.6491326]
[1772675400349,2.7281263,2112.3,2111.1,0.46485975]
[1772675400556,1.5070576,2112.5,2111.1,0.46485975]
[1772675400778,0.32358099,2112.5,2111.3,0.46485975]
[1772675401073,0.32358099,2112.5,2111.0,4.73701963]
[1772675401074,0.49753841,2112.3,2111.0,4.73701963]
[1772675401371,0.49753841,2112.2,2110.8,1.18547208]
[1772675401542,0.49753841,2112.1,2110.8,2.19647208]